bitfinex/quotes_SOLUSD_20251025
["timestamp","ask_amount","ask_price","bid_price","bid_amount"]
[1761365991961,5.14528128,194.36,194.32,0.68]
[1761365992143,7.68842523,194.37,194.32,0.68]
[1761365992347,0.53005381,194.36,194.32,0.68]
[1761365992856,22.88,194.34,194.29,0.69]
[1761365993041,2.54359836,194.33,194.29,0.69]
[1761365993251,22.88,194.34,194.29,0.69]
[1761365993740,25.95365217,194.34,194.29,0.69]
[1761365994137,5.14588586,194.33,194.29,0.69]
[1761365996663,7.68948422,194.33,194.29,0.69]
[1761365999161,3.07365217,194.32,194.29,0.69]
[1761365999367,3.12359836,194.32,194.27,11.56647521]
[1761365999542,3.12359836,194.32,194.28,0.69]
[1761365999943,2.54359836,194.32,194.28,0.69]
[1761366000363,0.53005381,194.36,194.31,2.54359836]
[1761366000570,2.54359836,194.38,194.31,2.54359836]
[1761366000764,0.53005381,194.37,194.32,0.69]
[1761366001147,2.54359836,194.35,194.3,0.69]
[1761366001462,0.53005381,194.34,194.3,0.69]
[1761366001657,3.07365217,194.34,194.3,0.69]
[1761366002056,8.21946326,194.34,194.3,0.69]
[1761366003151,2.54359836,194.32,194.28,5.14712731]
[1761366003367,2.54359836,194.32,194.29,0.69]
[1761366003550,2.54359836,194.33,194.29,0.69]
[1761366003866,8.21946326,194.34,194.29,0.69]
[1761366004272,2.54359836,194.33,194.29,0.69]
[1761366006662,2.54359836,194.32,194.29,0.69]
[1761366007362,2.54359836,194.32,194.27,4.29387248]
[1761366007560,2.54359836,194.31,194.28,0.69]
[1761366009761,8.21981591,194.32,194.28,0.69]
[1761366013879,3.07365217,194.32,194.28,5.83713869]
[1761366014373,3.07365217,194.32,194.29,0.69]
[1761366015250,2.54359836,194.3,194.28,0.69]
[1761366015470,8.21984537,194.32,194.29,0.69]
[1761366015872,0.58,194.31,194.25,10.87647521]
[1761366016087,0.58,194.31,194.22,0.69]
[1761366016088,2.54359836,194.26,194.22,0.69]
[1761366016290,36.75005381,194.29,194.22,0.69]
[1761366016582,15.96367193,194.27,194.22,5.83878425]
[1761366016749,3.07365217,194.26,194.22,0.69]
[1761366016954,2.54359836,194.25,194.23,0.69]
[1761366017157,3.07365217,194.24,194.2,0.69]
[1761366017456,2.54359836,194.23,194.2,0.69]
[1761366018861,2.54359836,194.22,194.2,0.69]
[1761366019169,2.54359836,194.23,194.2,0.69]
[1761366020662,11.40661109,194.24,194.2,0.66]
[1761366020871,2.54359836,194.22,194.2,0.66]
[1761366021077,2.54359836,194.23,194.2,0.66]
[1761366022191,6.25811508,194.24,194.2,0.66]
[1761366022481,6.25811508,194.24,194.2,3.20359836]
[1761366022482,5.72806127,194.24,194.2,3.20359836]
[1761366022861,2.54359836,194.25,194.21,0.66]
[1761366023062,18.00711734,194.25,194.21,0.66]
[1761366023579,20.61153661,194.25,194.21,0.66]
[1761366024694,0.53005381,194.24,194.21,0.66]
[1761366025072,0.53005381,194.24,194.17,47.07647521]
[1761366025391,3.07365217,194.24,194.21,0.66]
[1761366026086,23.68562621,194.24,194.21,0.66]
[1761366027683,23.68562621,194.24,194.19,0.66]
[1761366028691,24.26562621,194.24,194.19,0.66]
[1761366029183,23.68562621,194.24,194.19,0.66]
[1761366029561,7.69215608,194.23,194.19,0.66]
[1761366029981,3.65365217,194.22,194.17,52.88655264]
[1761366030368,3.65365217,194.22,194.17,52.22655264]
[1761366030586,3.65365217,194.22,194.18,0.66]
[1761366031289,8.22250551,194.22,194.18,0.66]
[1761366032598,7.6924517,194.22,194.18,5.80984554]
[1761366032777,8.22221132,194.23,194.18,5.80984554]
[1761366032982,19.09868653,194.23,194.19,0.66]
[1761366033999,2.54359836,194.22,194.19,0.66]
[1761366035503,7.69252441,194.22,194.19,0.66]
[1761366035700,3.07365217,194.22,194.19,0.66]
[1761366036006,13.95012738,194.22,194.19,0.66]
[1761366036678,19.09898568,194.22,194.17,5.15010888]
[1761366036889,2.54359836,194.21,194.17,0.66]
[1761366037071,19.09898568,194.22,194.18,0.66]
[1761366037904,19.67898568,194.22,194.18,0.66]
[1761366038106,19.09898568,194.22,194.18,0.66]
[1761366038281,2.54359836,194.21,194.18,0.66]
[1761366040006,7.69269791,194.21,194.18,0.66]
[1761366041002,5.14909955,194.21,194.18,0.66]
[1761366041803,18.53956272,194.22,194.18,0.66]
[1761366042600,15.46591055,194.22,194.18,8.35344179]
[1761366042810,15.46591055,194.22,194.19,2.54359836]
[1761366043098,15.46591055,194.22,194.19,1.16]
[1761366043400,52.07021099,194.24,194.2,0.66]
[1761366043697,12.87655882,194.24,194.22,2.54359836]
[1761366043878,0.53005381,194.26,194.22,3.20359836]
[1761366044078,3.07365217,194.26,194.22,0.66]
[1761366044574,3.12359836,194.25,194.2,0.66]
[1761366044784,2.54359836,194.24,194.2,5.80930869]
[1761366045289,2.54359836,194.24,194.21,0.66]
[1761366048413,0.53005381,194.25,194.22,2.54359836]
[1761366048607,0.53005381,194.25,194.21,0.66]
[1761366048804,2.15985212,194.25,194.21,0.66]
[1761366049489,12.45718784,194.25,194.21,0.66]
[1761366049811,6.77810147,194.24,194.21,0.66]
[1761366050115,5.14830316,194.24,194.21,0.66]
[1761366050305,6.77810147,194.24,194.21,0.66]
[1761366051109,5.14830316,194.24,194.21,0.66]
[1761366051307,6.77810147,194.24,194.21,0.66]
[1761366051808,6.2593662,194.25,194.21,0.66]
[1761366052010,1.62979831,194.24,194.21,0.66]
[1761366058594,11.40748554,194.25,194.21,0.66]
[1761366058796,1.62979831,194.24,194.21,0.66]
[1761366062818,1.62979831,194.24,194.21,5.80904276]
[1761366063511,7.30797146,194.25,194.22,0.66]
[1761366063689,2.15985212,194.25,194.22,0.66]
[1761366063893,2.73985212,194.25,194.21,5.80904276]
[1761366065118,2.73985212,194.25,194.21,0.66]
[1761366066320,2.73985212,194.25,194.21,5.80906168]
[1761366067023,2.73985212,194.25,194.22,0.66]
[1761366069024,1.62979831,194.24,194.22,0.66]
[1761366071235,1.62979831,194.24,194.21,0.66]
[1761366071406,1.62979831,194.24,194.2,5.14933058]
[1761366071721,1.62979831,194.24,194.22,0.66]
[1761366076030,7.3078883,194.25,194.22,0.66]
[1761366076923,1.62979831,194.24,194.22,0.66]
[1761366080532,7.3078883,194.25,194.22,0.66]
[1761366082431,5.67808999,194.25,194.22,0.66]
[1761366082613,7.3078883,194.25,194.22,0.66]
[1761366084838,5.67808999,194.25,194.22,0.66]
[1761366085034,7.3078883,194.25,194.22,0.66]
[1761366088441,1.62979831,194.24,194.22,0.66]
[1761366089139,1.62979831,194.24,194.2,5.14926818]
[1761366089521,1.62979831,194.24,194.21,0.7]
[1761366090842,5.67808999,194.25,194.21,0.7]
[1761366091045,1.62979831,194.24,194.21,0.7]
[1761366091742,6.7781038,194.24,194.19,5.64952855]
[1761366092050,0.58,194.23,194.19,5.64952855]
[1761366092222,6.7781038,194.24,194.2,0.7]
[1761366092423,7.3581038,194.24,194.2,0.7]
[1761366092843,1.62979831,194.24,194.19,5.64952855]
[1761366093041,1.62979831,194.24,194.1,102.93478842]
[1761366093042,1.62979831,194.2,194.15,0.7]
[1761366093365,1.62979831,194.16,194.11,5.15171809]
[1761366093545,1.62979831,194.15,194.11,5.15171809]
[1761366093845,1.62979831,194.15,194.12,0.7]
[1761366094219,0.53005381,194.16,194.12,5.85144516]
[1761366094220,2.15985212,194.16,194.12,5.85144516]
[1761366094437,2.15985212,194.19,194.13,1.62979831]
[1761366094637,2.15985212,194.19,194.13,2.32979831]
[1761366094841,2.15985212,194.19,194.14,0.7]
[1761366095440,2.15985212,194.19,194.14,5.85076824]
[1761366096051,7.30946279,194.19,194.15,0.7]
[1761366096235,1.62979831,194.18,194.15,0.7]
[1761366097942,1.62979831,194.17,194.15,0.7]
[1761366098432,1.62979831,194.16,194.13,0.7]
[1761366098647,1.62979831,194.16,194.14,0.7]
[1761366100250,1.62979831,194.15,194.12,5.15140551]
[1761366100553,1.62979831,194.16,194.13,0.7]
[1761366102540,2.15985212,194.16,194.13,0.7]
[1761366103049,0.53005381,194.16,194.13,0.7]
[1761366103252,2.15985212,194.16,194.13,0.7]
[1761366105249,2.15985212,194.16,194.13,5.85117761]
[1761366105438,1.62979831,194.16,194.13,5.85117761]
[1761366105638,1.62979831,194.16,194.14,0.7]
[1761366106158,71.63269006,194.21,194.14,0.7]
[1761366106159,5.67968994,194.19,194.14,0.7]
[1761366106469,1.62979831,194.18,194.14,0.7]
[1761366107054,0.53005381,194.17,194.14,0.7]
[1761366107563,2.15985212,194.18,194.14,0.7]
[1761366108061,1.62979831,194.17,194.14,0.7]
[1761366108753,2.54906487,194.16,194.14,0.7]
[1761366108943,2.54906487,194.17,194.14,0.7]
[1761366112173,8.229018,194.18,194.14,0.7]
[1761366112678,0.53005381,194.18,194.14,0.7]
[1761366112861,0.53005381,194.2,194.15,2.54906487]
[1761366113061,8.2285394,194.2,194.14,5.85085083]
[1761366113267,8.2285394,194.2,194.15,0.67]
[1761366113983,8.2285394,194.2,194.14,0.67]
[1761366113984,3.12906487,194.19,194.14,0.67]
[1761366114177,0.53005381,194.18,194.14,0.67]
[1761366114682,3.07911868,194.19,194.14,0.67]
[1761366114853,8.22875239,194.19,194.14,0.67]
[1761366129595,6.25968752,194.19,194.14,0.67]
[1761366129898,8.80875239,194.19,194.14,0.67]
[1761366132285,2.54906487,194.18,194.14,0.67]
[1761366132588,0.53005381,194.17,194.14,0.67]
[1761366132996,3.65911868,194.17,194.12,0.67]
[1761366133294,8.80943732,194.17,194.12,5.82141371]
[1761366133485,8.22943732,194.17,194.12,0.67]
[1761366133678,8.22943732,194.17,194.13,0.67]
[1761366137901,2.54906487,194.16,194.13,0.67]
[1761366138072,3.07911868,194.15,194.11,0.67]
[1761366138276,3.65911868,194.15,194.11,0.67]
[1761366138495,3.12906487,194.14,194.09,36.57]
[1761366138796,3.12906487,194.14,194.1,0.67]
[1761366138993,3.07911868,194.15,194.1,0.67]
[1761366139201,3.65911868,194.15,194.1,0.67]
[1761366139700,5.15092201,194.14,194.1,0.67]
[1761366140493,5.15092201,194.14,194.08,5.83249429]
[1761366140494,3.65911868,194.13,194.08,5.83249429]
[1761366140686,2.54906487,194.12,194.08,5.83249429]
[1761366140891,2.54906487,194.12,194.09,0.68]
[1761366142607,2.54906487,194.12,194.09,5.83221608]
[1761366142901,48.75597857,194.16,194.09,5.83221608]
[1761366142902,2.54906487,194.16,194.1,2.54906487]
[1761366143091,22.88,194.16,194.12,2.54906487]
[1761366143288,0.53005381,194.17,194.12,2.54906487]
[1761366143476,0.53005381,194.17,194.13,0.68]
[1761366144207,8.22947956,194.17,194.13,0.68]
[1761366145781,7.69950508,194.16,194.13,0.68]
[1761366146382,7.69946523,194.16,194.13,0.68]
[1761366149605,3.07911868,194.15,194.1,16.02839396]
[1761366149807,3.65911868,194.15,194.1,0.68]
[1761366150013,0.58,194.14,194.1,0.68]
[1761366150212,3.12906487,194.14,194.1,0.68]
[1761366150612,2.54906487,194.14,194.1,0.68]
[1761366151622,5.15094065,194.14,194.1,0.68]
[1761366151798,5.15094065,194.14,194.1,5.83195809]
[1761366152209,5.15094065,194.14,194.11,0.68]
[1761366153633,7.70000552,194.14,194.11,0.68]
[1761366155227,3.07911868,194.13,194.1,0.68]
[1761366156303,8.23036781,194.13,194.1,0.68]
[1761366157322,8.81036781,194.13,194.09,0.68]
[1761366157623,8.23036781,194.13,194.09,0.68]
[1761366158816,8.81036781,194.13,194.09,0.68]
[1761366161306,8.23036781,194.13,194.09,0.68]
[1761366161526,5.68130294,194.13,194.09,0.68]
[1761366161723,0.53005381,194.13,194.09,5.83224546]
[1761366162107,0.53005381,194.13,194.1,0.68]
[1761366163123,3.07911868,194.13,194.07,7.70184479]
[1761366163330,3.65911868,194.13,194.07,5.83277992]
[1761366163509,3.07911868,194.13,194.08,0.68]
[1761366164224,2.54906487,194.12,194.08,0.68]
[1761366166806,0.53005381,194.11,194.08,0.68]
[1761366167100,7.70054515,194.12,194.08,0.68]
[1761366168231,0.53005381,194.11,194.08,0.68]
[1761366168416,7.70054515,194.12,194.08,0.68]
[1761366168915,0.53005381,194.11,194.08,0.68]
[1761366169320,7.70054515,194.12,194.08,0.68]
[1761366169929,2.54906487,194.12,194.08,5.8325068]
[1761366170732,1.63204018,194.12,194.08,5.8325068]
[1761366170931,0.53005381,194.13,194.09,0.66]
[1761366171828,2.16209399,194.13,194.09,0.66]
[1761366172633,7.31333786,194.13,194.09,0.66]
[1761366184942,7.31333786,194.13,194.09,5.8121804]
[1761366185318,7.31333786,194.13,194.1,0.68]
[1761366185319,5.68129768,194.13,194.1,0.68]
[1761366186743,5.68129768,194.13,194.1,5.8321804]
[1761366187348,5.68129768,194.13,194.11,0.68]
[1761366187533,0.53005381,194.13,194.11,0.68]
[1761366187847,0.53005381,194.16,194.11,2.31204018]
[1761366188025,0.53005381,194.16,194.11,12.61619994]
[1761366188335,0.53005381,194.16,194.12,2.31204018]
[1761366188527,25.04209399,194.17,194.12,0.68]
[1761366188728,25.04209399,194.17,194.13,0.68]
[1761366188925,7.36262486,194.16,194.12,13.56183973]
[1761366190144,6.78262486,194.16,194.13,0.68]
[1761366192651,6.78274955,194.15,194.13,0.68]
[1761366193151,5.68076318,194.15,194.13,0.68]
[1761366193745,5.15070937,194.15,194.13,0.68]
[1761366199259,6.78274955,194.15,194.13,0.68]
[1761366199461,5.15070937,194.15,194.13,0.68]
[1761366201854,6.78274955,194.15,194.13,0.68]
[1761366202058,6.78274955,194.15,194.12,0.72]
[1761366203163,5.15070937,194.15,194.12,0.72]
[1761366203346,6.78274955,194.15,194.12,0.72]
[1761366215350,5.15070937,194.15,194.12,0.72]
[1761366215751,5.68038635,194.17,194.12,0.72]
[1761366215954,7.31242653,194.17,194.12,0.72]
[1761366216151,7.31242653,194.17,194.13,15.46910047]
[1761366216556,7.31242653,194.17,194.14,0.72]
[1761366217757,6.78237272,194.17,194.14,0.72]
[1761366220174,5.15033254,194.17,194.14,0.72]
[1761366220475,6.78237272,194.17,194.14,0.72]
[1761366220682,5.15033254,194.17,194.14,0.72]
[1761366224891,43.17201172,194.18,194.14,0.72]
[1761366229286,7.31201172,194.18,194.14,0.72]
[1761366229473,43.15201172,194.18,194.14,0.72]
[1761366229886,1.63204018,194.17,194.14,0.72]
[1761366230684,2.54887128,194.17,194.14,0.72]
[1761366232085,7.69907686,194.17,194.14,0.72]
[1761366235194,5.15020558,194.17,194.14,0.72]
[1761366240106,7.69907686,194.17,194.14,0.72]
[1761366243710,5.15020558,194.17,194.14,0.72]
[1761366244008,7.69907686,194.17,194.14,0.72]
[1761366244686,5.15020558,194.17,194.14,0.72]
[1761366244893,0.53005381,194.18,194.14,0.72]
[1761366244894,44.06885745,194.18,194.14,0.72]
[1761366246395,0.53005381,194.2,194.15,13.42534649]
[1761366246602,2.54887128,194.22,194.15,13.42534649]
[1761366246804,2.54887128,194.22,194.16,3.24887128]
[1761366247197,2.54887128,194.22,194.17,0.7]
[1761366247398,0.53005381,194.23,194.18,2.54887128]
[1761366247604,53.64539267,194.24,194.18,2.54887128]
[1761366247804,53.64539267,194.24,194.19,0.7]
[1761366248115,10.10819845,194.24,194.21,2.54887128]
[1761366248322,10.10819845,194.24,194.21,7.69791348]
[1761366248615,10.10819845,194.24,194.22,0.7]
[1761366251802,40.9872496,194.28,194.22,8.39759196]
[1761366252002,43.53612088,194.28,194.22,23.8587201]
[1761366252200,43.53612088,194.28,194.23,0.7]
[1761366252817,3.07892509,194.27,194.23,0.7]
[1761366253122,2.54887128,194.27,194.23,0.7]
[1761366255427,2.54887128,194.27,194.23,16.16112814]
[1761366256624,2.54887128,194.27,194.24,0.7]
[1761366257306,41.51730341,194.28,194.24,0.7]
[1761366257605,2.54887128,194.27,194.24,0.7]
[1761366262729,44.06617469,194.28,194.24,0.7]
[1761366265029,44.06617469,194.28,194.24,16.16112814]
[1761366265227,44.06617469,194.28,194.25,0.72]
[1761366268828,36.37005381,194.28,194.25,0.72]
[1761366269030,3.07892509,194.28,194.25,0.72]
[1761366270930,8.22614003,194.28,194.25,0.72]
[1761366275113,2.54887128,194.27,194.25,0.72]
[1761366276327,3.07892509,194.26,194.23,15.46112814]
[1761366276633,2.54887128,194.25,194.22,0.72]
[1761366276932,2.54887128,194.25,194.22,16.18112814]
[1761366276933,3.12887128,194.25,194.22,16.18112814]
[1761366277129,2.54887128,194.25,194.22,16.18112814]
[1761366277309,2.54887128,194.25,194.22,0.72]
[1761366277815,2.54887128,194.25,194.23,5.86759701]
[1761366278033,2.54887128,194.25,194.23,0.72]
[1761366284647,7.69697711,194.25,194.21,0.72]
[1761366284954,7.69697711,194.25,194.22,0.72]
[1761366288934,7.69697711,194.25,194.22,6.39786795]
[1761366289133,7.69697711,194.25,194.23,0.72]
[1761366292043,5.14774014,194.26,194.23,0.72]
[1761366292355,3.07892509,194.25,194.23,0.72]
[1761366292742,2.15999679,194.25,194.23,0.72]
[1761366296160,1.62994298,194.25,194.23,0.72]
[1761366298554,5.14803878,194.25,194.23,0.72]
[1761366298857,6.77798176,194.25,194.23,0.72]
[1761366301066,1.62994298,194.24,194.23,0.72]
[1761366301364,1.62994298,194.24,194.21,13.58810606]
[1761366301749,1.62994298,194.24,194.22,0.72]
[1761366302145,2.73999679,194.23,194.15,5.15049651]
[1761366302455,1.62994298,194.17,194.16,0.72]
[1761366303452,5.6793406,194.21,194.16,0.72]
[1761366303747,1.62994298,194.19,194.16,0.72]
[1761366304149,1.62994298,194.2,194.16,0.72]
[1761366305063,1.62994298,194.2,194.16,5.87036914]
[1761366305267,2.15999679,194.24,194.17,10.87647521]
[1761366305448,2.15999679,194.24,194.17,11.59647521]
[1761366305449,1.62994298,194.23,194.17,11.59647521]
[1761366305656,1.62994298,194.23,194.18,0.72]
[1761366306464,6.77848642,194.23,194.18,0.72]
[1761366307368,1.62994298,194.22,194.18,0.72]
[1761366311974,6.77875025,194.22,194.18,0.72]
[1761366315292,1.62994298,194.2,194.16,5.15031266]
[1761366315463,1.62994298,194.2,194.17,0.72]
[1761366320293,7.30922182,194.21,194.17,0.72]
[1761366320972,7.88922182,194.21,194.17,0.72]
[1761366321790,7.30922182,194.21,194.17,0.72]
[1761366324096,1.62994298,194.2,194.17,0.72]
[1761366324397,7.30922182,194.21,194.17,0.72]
[1761366327504,1.62994298,194.2,194.17,0.72]
[1761366327701,1.62994298,194.19,194.17,0.72]
[1761366327887,1.62994298,194.19,194.16,0.67]
[1761366328369,2.15999679,194.18,194.16,0.67]
[1761366328575,1.62994298,194.18,194.15,0.67]
[1761366329482,2.15999679,194.18,194.15,0.67]
[1761366329705,1.62994298,194.18,194.15,0.67]
[1761366329871,2.15999679,194.18,194.15,0.67]
[1761366330082,6.77955998,194.19,194.15,0.67]
[1761366334184,6.77955998,194.19,194.15,5.8206486]
[1761366334692,6.77955998,194.19,194.16,0.67]
[1761366335872,7.30898893,194.22,194.16,5.82038841]
[1761366336295,7.30898893,194.22,194.17,0.67]
[1761366337529,5.67904595,194.22,194.17,5.81995824]
[1761366337903,5.67904595,194.22,194.18,0.67]
[1761366338528,0.53005381,194.22,194.18,5.81972137]
[1761366338715,5.1485279,194.24,194.19,0.67]
[1761366338716,0.53005381,194.24,194.19,0.67]
[1761366339213,1.62994298,194.23,194.19,0.67]
[1761366341811,1.62994298,194.22,194.19,0.67]
[1761366341996,1.62994298,194.21,194.16,35.76]
[1761366342191,1.62994298,194.21,194.18,0.67]
[1761366347218,7.30857223,194.23,194.18,0.67]
[1761366348425,1.62994298,194.22,194.18,0.67]
[1761366349815,108.97797736,194.25,194.18,7.44971623]
[1761366350020,6.77797736,194.25,194.18,20.32060318]
[1761366350224,6.77797736,194.25,194.19,0.65]
[1761366350398,1.62994298,194.24,194.19,0.65]
[1761366351828,1.62994298,194.24,194.19,5.79941612]
[1761366352119,1.62994298,194.24,194.2,0.65]
[1761366352528,7.308208,194.25,194.2,0.65]
[1761366352720,8.22517598,194.25,194.2,0.65]
[1761366352923,5.67783916,194.26,194.2,3.19691096]
[1761366353123,8.22475012,194.26,194.2,0.65]
[1761366353323,8.22475012,194.26,194.19,7.69632708]
[1761366353324,8.22475012,194.26,194.21,0.65]
[1761366354827,66.8643962,194.28,194.21,8.34589633]
[1761366355208,64.31748524,194.28,194.22,3.19691096]
[1761366355619,64.31748524,194.28,194.23,0.65]
[1761366357126,28.55748524,194.28,194.23,0.65]
[1761366358126,28.55748524,194.28,194.23,3.19691096]
[1761366358332,28.55748524,194.28,194.24,0.66]
[1761366361427,28.02743143,194.28,194.24,0.66]
[1761366365517,28.02743143,194.28,194.24,3.20691096]
[1761366366030,28.02743143,194.28,194.25,0.66]
[1761366370529,28.60743143,194.28,194.24,2.54691096]
[1761366370746,28.60743143,194.28,194.24,3.20691096]
[1761366371248,28.02743143,194.28,194.25,0.66]
[1761366371821,28.02743143,194.28,194.24,0.66]
[1761366371822,0.53005381,194.27,194.24,0.66]
[1761366372039,0.53005381,194.27,194.24,3.20691096]
[1761366372517,0.53005381,194.27,194.25,0.66]
[1761366372717,5.67704936,194.29,194.25,3.20691096]
[1761366373045,5.67704936,194.29,194.26,0.66]
[1761366377339,5.67704936,194.29,194.24,0.66]
[1761366377526,0.58,194.28,194.23,2.54691096]
[1761366377727,0.53005381,194.27,194.22,3.20691096]
[1761366377945,0.58,194.26,194.22,3.20691096]
[1761366378128,0.53005381,194.27,194.23,0.66]
[1761366378327,1.11005381,194.27,194.23,0.66]
[1761366378944,5.14774014,194.26,194.23,0.66]
[1761366380531,5.14747516,194.27,194.23,0.66]
[1761366380734,0.53005381,194.26,194.23,0.66]
[1761366382652,5.67782666,194.26,194.23,0.66]
[1761366382858,0.58,194.25,194.22,2.54691096]
[1761366383160,5.67782666,194.26,194.22,3.20691096]
[1761366383355,6.25782666,194.26,194.22,3.20691096]
[1761366383564,6.25782666,194.26,194.23,0.66]
[1761366383861,5.67782666,194.26,194.23,0.66]
[1761366384658,6.25782666,194.26,194.23,0.66]
[1761366384953,5.67782666,194.26,194.23,0.66]
[1761366387268,5.67782666,194.26,194.22,2.54691096]
[1761366387435,6.25782666,194.26,194.22,2.54691096]
[1761366387641,6.25782666,194.26,194.23,0.66]
[1761366387859,5.67782666,194.26,194.23,0.66]
[1761366395081,0.53005381,194.26,194.23,3.20691096]
[1761366395375,41.39699909,194.29,194.24,0.66]
[1761366398481,43.94391005,194.29,194.24,0.66]
[1761366400678,44.52391005,194.29,194.24,0.66]
[1761366402687,0.58,194.28,194.24,0.66]
[1761366402865,0.53005381,194.27,194.24,0.66]
[1761366403361,5.67767456,194.27,194.24,0.66]
[1761366403559,5.14762075,194.27,194.24,0.66]
[1761366408472,5.14762075,194.27,194.25,3.83709582]
[1761366408782,5.14762075,194.27,194.26,3.83709582]
[1761366409191,5.14762075,194.27,194.24,0.66]
[1761366409489,5.14762075,194.27,194.25,3.83731494]
[1761366409697,5.14762075,194.27,194.24,0.66]
[1761366409872,5.14762075,194.27,194.25,3.8380846]
[1761366410193,5.14762075,194.27,194.24,0.66]
[1761366410492,5.14762075,194.27,194.25,3.83806386]
[1761366410790,36.25005381,194.29,194.26,3.83806386]
[1761366410964,41.39713145,194.29,194.24,5.80820678]
[1761366411168,41.97713145,194.29,194.25,4.54739934]
[1761366411365,41.97713145,194.29,194.26,3.83739934]
[1761366411583,41.97713145,194.29,194.25,0.71]
[1761366411775,41.44707764,194.29,194.25,0.71]
[1761366413199,0.53005381,194.28,194.25,0.71]
[1761366414094,5.67677071,194.3,194.25,0.71]
[1761366414969,6.25677071,194.3,194.25,0.71]
[1761366415572,6.25677071,194.3,194.26,3.83694992]
[1761366415884,6.25677071,194.3,194.25,0.71]
[1761366416084,6.25677071,194.3,194.26,3.83695058]
[1761366416287,6.25677071,194.3,194.25,0.71]
[1761366416481,6.25677071,194.3,194.26,3.83685094]
[1761366416683,6.25677071,194.3,194.25,0.71]
[1761366416896,6.25677071,194.3,194.26,3.83684869]
[1761366417077,6.25677071,194.3,194.25,0.71]
[1761366417394,6.25677071,194.3,194.26,3.83684869]
[1761366417695,6.25677071,194.3,194.25,0.71]
[1761366417870,5.67677071,194.3,194.26,3.83676533]
[1761366418066,5.67677071,194.3,194.27,3.83609937]
[1761366418276,5.67677071,194.3,194.27,0.7]
[1761366419295,6.25677071,194.3,194.27,0.7]
[1761366419494,5.67677071,194.3,194.27,0.7]
[1761366419672,6.25677071,194.3,194.27,0.7]
[1761366420180,5.67677071,194.3,194.27,0.7]
[1761366420379,6.25677071,194.3,194.27,0.7]
[1761366420582,5.67677071,194.3,194.27,0.7]
[1761366421581,6.25677071,194.3,194.25,1.62910021]
[1761366421780,6.25677071,194.3,194.26,0.7]
[1761366423002,5.67677071,194.3,194.26,0.7]
[1761366425494,7.30587092,194.3,194.26,0.7]
[1761366426108,5.67677071,194.3,194.26,0.7]
[1761366433820,7.30587092,194.3,194.26,0.7]
[1761366434616,5.67677071,194.3,194.26,0.7]
[1761366435900,7.30587092,194.3,194.26,0.7]
[1761366436804,7.88587092,194.3,194.26,0.7]
[1761366437123,7.30587092,194.3,194.26,0.7]
[1761366440313,0.58,194.29,194.26,0.7]
[1761366440623,7.88587092,194.3,194.26,0.7]
[1761366440828,1.62910021,194.29,194.26,0.7]
[1761366441018,0.53005381,194.28,194.26,0.7]
[1761366441208,1.62910021,194.27,194.22,0.71]
[1761366441407,1.62910021,194.25,194.22,7.48733737]
[1761366441604,0.53005381,194.24,194.22,0.71]
[1761366441822,7.88749786,194.24,194.2,0.71]
[1761366442020,1.62910021,194.21,194.19,2.06180253]
[1761366442223,1.62910021,194.22,194.16,10.87647521]
[1761366442416,2.15915402,194.22,194.19,0.71]
[1761366443331,0.53005381,194.22,194.19,0.71]
[1761366443916,5.67885663,194.22,194.19,0.71]
[1761366451443,7.30795684,194.22,194.19,0.71]
[1761366451614,7.30795684,194.22,194.15,1.62910021]
[1761366451814,5.15031996,194.21,194.18,0.71]
[1761366452030,0.53005381,194.2,194.18,0.71]
[1761366453542,0.53005381,194.2,194.12,58.56]
[1761366453543,2.20910021,194.19,194.13,0.71]
[1761366453733,1.62910021,194.16,194.13,0.71]
[1761366453909,0.53005381,194.15,194.13,0.71]
[1761366454333,0.53005381,194.16,194.13,0.71]
[1761366454530,2.06275945,194.15,194.13,0.71]
[1761366459126,2.06275945,194.15,194.11,5.15164323]